bitfinex/quotes_BTCUSD_20241208
["timestamp","ask_amount","ask_price","bid_price","bid_amount"]
[1733645918086,0.0017316,99460.0,99459.0,0.94537002]
[1733645918291,0.0017316,99460.0,99459.0,0.97534604]
[1733645918415,0.0017316,99460.0,99459.0,0.97036697]
[1733645918626,0.0017316,99460.0,99459.0,1.02036697]
[1733645918863,0.0017316,99460.0,99459.0,1.02035146]
[1733645919085,0.0017316,99460.0,99459.0,0.79526729]
[1733645919285,0.0017316,99460.0,99459.0,0.9453542]
[1733645919686,0.0017316,99460.0,99459.0,0.76529028]
[1733645919914,0.0017316,99460.0,99459.0,0.94535283]
[1733645920078,0.0017316,99460.0,99459.0,0.77429028]
[1733645920273,0.0017316,99460.0,99459.0,0.76529028]
[1733645920484,0.0017316,99460.0,99459.0,0.94935283]
[1733645920691,0.0017316,99460.0,99459.0,0.76929028]
[1733645921809,0.0017316,99460.0,99459.0,0.95835778]
[1733645921961,0.0017316,99460.0,99459.0,0.77829028]
[1733645922623,0.0017316,99460.0,99459.0,0.79163097]
[1733645922805,0.0017316,99460.0,99459.0,0.49335369]
[1733645923184,0.0017316,99460.0,99459.0,0.92724338]
[1733645923393,0.0017316,99460.0,99459.0,0.79217957]
[1733645923805,0.0017316,99460.0,99459.0,0.44335369]
[1733645924203,0.0017316,99460.0,99459.0,0.92701724]
[1733645924397,0.0017316,99460.0,99459.0,0.87733356]
[1733645924623,0.0017316,99460.0,99459.0,0.39335369]
[1733645924827,0.0017316,99460.0,99459.0,0.48341933]
[1733645925251,0.0017316,99460.0,99459.0,0.39335369]
[1733645925649,0.0017316,99460.0,99459.0,0.37035369]
[1733645925862,0.0017316,99460.0,99459.0,0.22035369]
[1733645926125,0.0017316,99460.0,99459.0,0.20735369]
[1733645926351,0.0017316,99460.0,99459.0,0.20735558]
[1733645926580,0.0017316,99460.0,99459.0,0.11932607]
[1733645926793,0.0017316,99460.0,99459.0,0.01051073]
[1733645926986,0.00361995,99460.0,99459.0,0.00751073]
[1733645927208,0.00361995,99460.0,99459.0,0.01051073]
[1733645928072,0.0017316,99460.0,99459.0,0.01951073]
[1733645928300,0.0803316,99460.0,99459.0,0.01951073]
[1733645928528,0.0803316,99460.0,99459.0,0.02636415]
[1733645928752,0.08221469,99460.0,99459.0,0.02636415]
[1733645929019,0.08221469,99460.0,99459.0,0.01736415]
[1733645929237,0.08221469,99460.0,99459.0,0.01385342]
[1733645929446,0.08221469,99460.0,99459.0,0.02336709]
[1733645929660,0.08221469,99460.0,99459.0,0.01651367]
[1733645930556,0.08221469,99460.0,99459.0,0.01451367]
[1733645931198,0.08221469,99460.0,99459.0,0.00751367]
[1733645931411,0.08221469,99460.0,99459.0,0.00951367]
[1733645931870,0.08221469,99460.0,99459.0,0.01257489]
[1733645932073,0.08221469,99460.0,99459.0,0.01357489]
[1733645932474,0.08321469,99460.0,99459.0,0.01357489]
[1733645937829,0.0813316,99460.0,99459.0,0.01357489]
[1733645939661,0.0813316,99460.0,99459.0,0.01357835]
[1733645940104,0.0813316,99460.0,99459.0,0.11360786]
[1733645940320,0.0027316,99460.0,99459.0,0.77380278]
[1733645940565,0.0027316,99460.0,99459.0,0.63854701]
[1733645940996,0.0027316,99460.0,99459.0,0.6685425]
[1733645941449,0.0017316,99460.0,99459.0,0.6675425]
[1733645941681,0.0017316,99460.0,99459.0,0.6725425]
[1733645942119,0.0017316,99460.0,99459.0,0.64154701]
[1733645942323,0.0017316,99460.0,99459.0,0.66754469]
[1733645942638,0.0017316,99460.0,99459.0,0.68054469]
[1733645942869,0.0017316,99460.0,99459.0,0.67154469]
[1733645943092,0.0017316,99460.0,99459.0,0.68054469]
[1733645944677,0.0017316,99460.0,99459.0,0.67302756]
[1733645944891,0.0017316,99460.0,99459.0,0.68054218]
[1733645946229,0.0017316,99460.0,99459.0,0.6778239]
[1733645946443,0.0017316,99460.0,99459.0,0.7278239]
[1733645946648,0.0017316,99460.0,99459.0,0.99840545]
[1733645946824,0.0017316,99460.0,99459.0,0.7278239]
[1733645951506,0.0017316,99460.0,99459.0,0.6778239]
[1733645951748,0.0017316,99460.0,99459.0,0.57482622]
[1733645951964,0.0798316,99460.0,99459.0,0.57482622]
[1733645952651,0.0798316,99460.0,99459.0,0.27560535]
[1733645952888,0.0798316,99460.0,99459.0,0.35682217]
[1733645953114,0.0798316,99460.0,99459.0,0.26660535]
[1733645953346,0.0798316,99460.0,99459.0,0.27460535]
[1733645953821,0.0798316,99460.0,99459.0,0.26660535]
[1733645954047,0.0648316,99460.0,99459.0,0.26660535]
[1733645954281,0.0648316,99460.0,99459.0,0.26260535]
[1733645954502,0.0648316,99460.0,99459.0,0.27060535]
[1733645954910,0.0648316,99460.0,99459.0,0.26860535]
[1733645955165,0.0648316,99460.0,99459.0,0.26109073]
[1733645955422,0.0648316,99460.0,99459.0,0.16206122]
[1733645955656,0.0648316,99460.0,99459.0,0.01206122]
[1733645955882,0.06666626,99460.0,99459.0,0.01206122]
[1733645956117,0.06666626,99460.0,99459.0,0.00506122]
[1733645956566,0.06666626,99460.0,99459.0,0.00906122]
[1733645956815,0.06666626,99460.0,99459.0,0.00506122]
[1733645957282,0.06666626,99460.0,99459.0,0.00706122]
[1733645957534,0.06666626,99460.0,99459.0,0.01872339]
[1733645957765,0.06666626,99460.0,99454.0,0.02018201]
[1733645957995,0.06500461,99460.0,99455.0,0.10002951]
[1733645958897,0.06600461,99460.0,99459.0,0.002]
[1733645959342,0.06683867,99460.0,99459.0,0.002]
[1733645959553,0.06683867,99460.0,99459.0,0.01422115]
[1733645959771,0.06683867,99460.0,99459.0,0.01222115]
[1733645959996,0.06683867,99460.0,99459.0,0.01422115]
[1733645960671,0.06783867,99460.0,99459.0,0.01422115]
[1733645961374,0.06683867,99460.0,99459.0,0.002]
[1733645961594,0.06783867,99460.0,99459.0,0.002]
[1733645962256,0.06956987,99460.0,99459.0,0.002]
[1733645964074,0.11596987,99460.0,99459.0,0.002]
[1733645971272,0.00473827,99460.0,99459.0,0.45600851]
[1733645971528,0.00473827,99460.0,99459.0,0.52828482]
[1733645971722,0.00290421,99460.0,99459.0,0.83141511]
[1733645972199,0.00290421,99460.0,99459.0,0.82941511]
[1733645972423,0.00290421,99460.0,99459.0,0.87941511]
[1733645972639,0.00290421,99460.0,99459.0,0.82941511]
[1733645972851,0.00290421,99460.0,99459.0,1.10266447]
[1733645973070,0.00290421,99460.0,99459.0,1.10766447]
[1733645973483,0.00190421,99460.0,99459.0,0.87716864]
[1733645973735,0.00190421,99460.0,99459.0,0.87816864]
[1733645974005,0.00190421,99460.0,99459.0,0.92816864]
[1733645974224,0.00190421,99460.0,99459.0,0.92716864]
[1733645974780,0.00190421,99460.0,99459.0,0.93116864]
[1733645974992,0.00190421,99460.0,99459.0,0.94016864]
[1733645975230,0.00190421,99460.0,99459.0,0.93116864]
[1733645975649,0.00190421,99460.0,99459.0,0.94016864]
[1733645975853,0.00190421,99460.0,99459.0,0.93116864]
[1733645976062,0.00190421,99460.0,99459.0,0.9661423]
[1733645976263,0.00190421,99460.0,99459.0,0.9701423]
[1733645976466,0.00190421,99460.0,99459.0,0.94016864]
[1733645976883,0.00190421,99460.0,99459.0,0.93616864]
[1733645977102,0.00190421,99460.0,99459.0,0.94016864]
[1733645977553,0.00190421,99460.0,99459.0,0.93616864]
[1733645978009,0.00190421,99460.0,99459.0,0.93216864]
[1733645978223,0.00190421,99460.0,99459.0,0.94116864]
[1733645978665,0.00190421,99460.0,99459.0,0.93216864]
[1733645978899,0.00190421,99460.0,99459.0,0.94116864]
[1733645979132,0.00190421,99460.0,99459.0,0.93616864]
[1733645979566,0.00190421,99460.0,99459.0,0.94116864]
[1733645980797,0.00190421,99460.0,99459.0,0.97114079]
[1733645981473,0.00190421,99460.0,99459.0,0.94116864]
[1733645982133,0.00190421,99460.0,99459.0,0.97114058]
[1733645982362,0.00190421,99460.0,99459.0,0.96995054]
[1733645987203,0.00190421,99460.0,99459.0,0.97120336]
[1733645992035,0.00190421,99460.0,99459.0,0.97103667]
[1733645992250,0.00190421,99460.0,99459.0,0.94106473]
[1733645992487,0.00190421,99460.0,99459.0,0.89106473]
[1733645992691,0.08430421,99460.0,99459.0,0.89106473]
[1733645993252,0.08430421,99460.0,99459.0,1.07137103]
[1733645993449,0.08430421,99460.0,99459.0,0.89106473]
[1733645994519,0.08430421,99460.0,99459.0,1.01237103]
[1733645994745,0.08430421,99460.0,99459.0,0.87706473]
[1733645994978,0.08430421,99460.0,99459.0,1.07037103]
[1733645995620,0.08430421,99460.0,99459.0,1.06637103]
[1733645996073,0.08430421,99460.0,99459.0,0.88606473]
[1733645996274,0.08430421,99460.0,99459.0,1.06637103]
[1733645996468,0.08430421,99460.0,99459.0,0.89006473]
[1733645997676,0.08430421,99460.0,99459.0,1.07041752]
[1733645998098,0.08430421,99460.0,99459.0,0.89006473]
[1733645998302,0.08430421,99460.0,99459.0,1.11544578]
[1733645998729,0.08430421,99460.0,99459.0,0.89006473]
[1733645999158,0.08430421,99460.0,99459.0,1.11544578]
[1733646000286,0.08430421,99460.0,99459.0,0.89006473]
[1733646000493,0.08430421,99460.0,99459.0,0.84006473]
[1733646001612,0.08430421,99460.0,99459.0,0.87006554]
[1733646002239,0.08430421,99460.0,99459.0,0.84006473]
[1733646002448,0.08430421,99460.0,99459.0,1.06549833]
[1733646002665,0.08430421,99460.0,99459.0,0.81706473]
[1733646002885,0.08430421,99460.0,99459.0,0.67455782]
[1733646004196,0.08430421,99460.0,99459.0,0.66555782]
[1733646004620,0.08430421,99460.0,99459.0,0.97315324]
[1733646004870,0.08430421,99460.0,99459.0,0.66555782]
[1733646005098,0.08430421,99460.0,99459.0,0.67455782]
[1733646005319,0.08430421,99460.0,99459.0,0.67055782]
[1733646005528,0.08430421,99460.0,99459.0,0.97324043]
[1733646005773,0.08430421,99460.0,99459.0,0.97724043]
[1733646005975,0.08430421,99460.0,99459.0,0.23527631]
[1733646006238,0.08430421,99460.0,99459.0,0.08527631]
[1733646006467,0.13040421,99460.0,99459.0,0.08527631]
[1733646006676,0.13040421,99460.0,99459.0,0.013]
[1733646006888,0.13223698,99460.0,99459.0,0.013]
[1733646007099,0.13040421,99460.0,99459.0,0.013]
[1733646007325,0.13223591,99460.0,99459.0,0.004]
[1733646007778,0.13223591,99460.0,99459.0,0.01]
[1733646007985,0.13223591,99460.0,99459.0,0.004]
[1733646008195,0.13223591,99460.0,99454.0,0.004912]
[1733646008196,0.0806,99459.0,99454.0,0.004912]
[1733646008432,0.0806,99457.0,99454.0,0.004912]
[1733646008696,0.0806,99455.0,99454.0,0.004912]
[1733646009104,0.08243229,99455.0,99454.0,0.004912]
[1733646009515,0.08368914,99455.0,99454.0,0.004912]
[1733646010602,0.08368914,99455.0,99454.0,0.006912]
[1733646011476,0.08368914,99455.0,99454.0,0.004912]
[1733646011692,0.08368914,99455.0,99454.0,0.007912]
[1733646013435,0.12978914,99455.0,99454.0,0.007912]
[1733646013649,0.31077514,99455.0,99454.0,0.007912]
[1733646013888,0.32960474,99455.0,99454.0,0.007912]
[1733646014094,0.32960474,99455.0,99454.0,0.004912]
[1733646014306,0.33060474,99455.0,99454.0,0.004912]
[1733646015204,0.33060474,99455.0,99450.0,0.0008656]
[1733646015205,0.180993,99451.0,99450.0,0.0008656]
[1733646015418,0.3089501,99451.0,99450.0,0.0008656]
[1733646015632,0.3095002,99451.0,99450.0,0.0008656]
[1733646016553,0.3125002,99451.0,99450.0,0.0008656]
[1733646016966,0.3095002,99451.0,99450.0,0.0008656]
[1733646018304,0.3125002,99451.0,99450.0,0.0008656]
[1733646018516,0.3125002,99451.0,99430.0,0.0008658]
[1733646018517,0.181024,99435.0,99430.0,0.0008658]
[1733646018725,0.12525716,99434.0,99430.0,0.0008658]
[1733646018941,0.0771,99433.0,99430.0,0.0008658]
[1733646019159,0.18228517,99432.0,99430.0,0.0008658]
[1733646019366,0.0771,99431.0,99430.0,0.0008658]
[1733646019577,0.0788854,99431.0,99430.0,0.0008658]
[1733646020471,0.4275054,99431.0,99430.0,0.0008658]
[1733646020690,0.44750268,99431.0,99430.0,0.0008658]
[1733646021811,0.44750268,99431.0,99430.0,0.0018658]
[1733646022038,0.44750268,99431.0,99430.0,0.0008658]
[1733646022280,0.124,99430.0,99420.0,0.0008658]
[1733646022481,0.124,99422.0,99420.0,0.0008658]
[1733646022699,0.25940535,99421.0,99420.0,0.0008658]
[1733646022922,0.38060523,99421.0,99420.0,0.0008658]
[1733646023852,0.38077815,99421.0,99420.0,0.0008658]
[1733646025165,0.38077815,99421.0,99420.0,0.0018658]
[1733646025661,0.38077815,99421.0,99420.0,0.0028658]
[1733646026507,0.38077815,99421.0,99420.0,0.0018658]
[1733646027799,0.38077815,99421.0,99420.0,0.0008658]
[1733646027800,0.37177815,99421.0,99420.0,0.0008658]
[1733646028535,0.37077815,99421.0,99420.0,0.0008658]
[1733646028764,0.37277815,99421.0,99420.0,0.0008658]
[1733646028974,0.37177815,99421.0,99420.0,0.01905818]
[1733646029217,0.37077815,99421.0,99420.0,0.01905818]
[1733646029453,0.37177815,99421.0,99420.0,0.01905818]
[1733646030128,0.37177815,99421.0,99420.0,0.0008658]
[1733646031677,0.37077815,99421.0,99420.0,0.0008658]
[1733646032171,0.37077815,99421.0,99420.0,0.0028658]
[1733646032385,0.37077815,99421.0,99420.0,0.0008658]
[1733646033042,0.37177815,99421.0,99420.0,0.0008658]
[1733646034775,0.37077815,99421.0,99420.0,0.0008658]
[1733646035002,0.37177815,99421.0,99420.0,0.0008658]
[1733646035228,0.37277815,99421.0,99420.0,0.0008658]
[1733646035455,0.37177815,99421.0,99420.0,0.0008658]
[1733646035906,0.37077815,99421.0,99420.0,0.0008658]
[1733646036362,0.37177815,99421.0,99420.0,0.0008658]
[1733646037248,0.37277815,99421.0,99420.0,0.0008658]
[1733646037699,0.37177815,99421.0,99420.0,0.0008658]
[1733646037935,0.30567815,99421.0,99420.0,0.0008658]
[1733646038306,0.30567815,99421.0,99420.0,0.01905798]
[1733646038516,0.30367815,99421.0,99420.0,0.01905798]
[1733646038708,0.30467815,99421.0,99420.0,0.01905798]
[1733646039113,0.30467815,99421.0,99420.0,0.20010798]
[1733646039313,0.30367815,99421.0,99420.0,0.20010798]
[1733646039683,0.30367815,99421.0,99420.0,0.21150844]
[1733646040115,0.30367815,99421.0,99420.0,0.02005798]
[1733646040333,0.30367815,99421.0,99420.0,0.20110798]
[1733646040763,0.30367815,99421.0,99420.0,0.02005798]
[1733646041199,0.30367815,99421.0,99420.0,0.02305798]
[1733646041455,0.38007815,99421.0,99420.0,0.02305798]
[1733646041692,0.38007815,99421.0,99420.0,0.0048658]
[1733646045505,0.37829292,99421.0,99420.0,0.0048658]
[1733646045901,0.38032578,99421.0,99420.0,0.0048658]
[1733646051757,0.38032578,99421.0,99420.0,0.0038658]
[1733646051973,0.38032578,99421.0,99420.0,0.02042108]
[1733646052445,0.38032578,99421.0,99420.0,0.02142108]
[1733646052446,0.37829292,99421.0,99420.0,0.02142108]
[1733646052664,0.37829292,99421.0,99420.0,0.02042108]
[1733646052875,0.38132547,99421.0,99420.0,0.02042108]
[1733646053108,0.38032547,99421.0,99420.0,0.02042108]
[1733646053364,0.30392547,99421.0,99420.0,0.02042108]
[1733646053602,0.30392547,99421.0,99420.0,0.14345059]
[1733646053863,0.30392547,99421.0,99420.0,0.23352165]
[1733646054072,0.30492547,99421.0,99420.0,0.14345059]
[1733646054306,0.37929292,99421.0,99420.0,0.23363957]
[1733646054508,0.38132344,99421.0,99420.0,0.14345059]
[1733646054958,0.38032344,99421.0,99420.0,0.14345059]
[1733646055179,0.38032344,99421.0,99420.0,0.15145059]
[1733646055442,0.30392344,99421.0,99420.0,0.14545059]
[1733646055649,0.30392344,99421.0,99420.0,0.14345059]
[1733646055860,0.30392344,99421.0,99420.0,0.23766827]
[1733646056069,0.30392344,99421.0,99420.0,0.23366827]
[1733646056279,0.30189292,99421.0,99420.0,0.23366827]
[1733646056510,0.30393056,99421.0,99420.0,0.14545059]
[1733646056722,0.30393056,99421.0,99420.0,0.28077712]
[1733646057181,0.30189292,99421.0,99420.0,0.28177712]
[1733646057643,0.30393353,99421.0,99420.0,0.14545059]
[1733646057854,0.30393353,99421.0,99420.0,0.45936503]
[1733646058067,0.30393353,99421.0,99420.0,0.46236503]
[1733646058282,0.30393353,99421.0,99420.0,0.45936503]
[1733646058505,0.30189292,99421.0,99420.0,0.6398004]
[1733646058740,0.30189292,99421.0,99420.0,0.83790925]
[1733646058946,0.30393232,99421.0,99420.0,0.61236503]
[1733646059368,0.30393232,99421.0,99420.0,0.70716503]
[1733646060076,0.30393232,99421.0,99420.0,0.70616503]
[1733646060320,0.30393232,99421.0,99420.0,0.70716503]
[1733646060763,0.30393232,99421.0,99420.0,0.70616503]
[1733646060975,0.30393232,99421.0,99420.0,0.70316503]
[1733646060976,0.30189292,99421.0,99420.0,0.70316503]
[1733646061188,0.30189292,99421.0,99420.0,0.71016503]
[1733646063873,0.30393884,99421.0,99420.0,0.71016503]
[1733646064785,0.30393884,99421.0,99420.0,0.61536503]
[1733646067485,0.30393884,99421.0,99420.0,0.61580676]
[1733646069406,0.38073884,99421.0,99420.0,0.61580676]
[1733646071228,0.38073884,99421.0,99420.0,0.84136631]
[1733646071452,0.30393884,99421.0,99420.0,0.84136881]
[1733646071699,0.30393884,99421.0,99420.0,0.84136874]
[1733646071924,0.30393884,99421.0,99420.0,0.8422154]
[1733646072578,0.30393884,99421.0,99420.0,0.61665354]
[1733646072821,0.30393884,99421.0,99420.0,0.84221961]
[1733646073052,0.30393884,99421.0,99420.0,0.61665354]
[1733646073480,0.40109193,99421.0,99420.0,0.49362403]
[1733646073696,0.40109193,99421.0,99420.0,0.62897522]
[1733646073922,0.39904601,99421.0,99420.0,0.31277227]
[1733646074174,0.39904601,99421.0,99420.0,0.17742108]
[1733646074403,0.40110212,99421.0,99420.0,0.02742108]
[1733646074643,0.40110212,99421.0,99420.0,0.0078658]
[1733646074644,0.63145012,99421.0,99420.0,0.0078658]
[1733646075124,0.181051,99419.0,99412.0,0.09023838]
[1733646075394,0.181051,99419.0,99406.0,0.09023838]
[1733646075395,0.0768,99417.0,99406.0,0.09023838]
[1733646075607,0.0768,99417.0,99401.0,0.28048702]
[1733646075608,0.0768,99415.0,99402.0,0.181082]
[1733646075826,0.0768,99413.0,99403.0,0.16889523]
[1733646076053,0.00202813,99412.0,99408.0,0.18107]
[1733646076278,0.30374813,99412.0,99408.0,0.18107]
[1733646076932,0.29374813,99412.0,99408.0,0.18107]
[1733646077146,0.00189876,99411.0,99408.0,0.18107]
[1733646077357,0.00189876,99411.0,99410.0,0.181068]
[1733646077579,0.00189876,99411.0,99410.0,0.45409751]
[1733646077851,0.00189876,99411.0,99410.0,0.95354181]
[1733646078054,0.29374813,99412.0,99410.0,0.99866973]
[1733646078279,0.29374813,99412.0,99411.0,0.59196215]
[1733646078492,0.29374813,99412.0,99411.0,0.69177749]
[1733646078924,0.29374813,99412.0,99411.0,0.79177749]
[1733646079151,0.29474813,99412.0,99411.0,1.06254498]
[1733646079423,0.29474813,99412.0,99411.0,0.79177749]
[1733646079639,0.29667312,99412.0,99411.0,0.79177749]
[1733646079845,0.29474813,99412.0,99411.0,0.74277749]
[1733646080052,0.29474813,99412.0,99411.0,0.79277749]
[1733646080269,0.29667312,99412.0,99411.0,0.79277749]
[1733646080473,0.29374813,99412.0,99411.0,0.79177749]
[1733646080696,0.29374813,99412.0,99411.0,0.79877749]
[1733646081143,0.29374813,99412.0,99411.0,0.79577749]
[1733646081349,0.29374813,99412.0,99411.0,0.80477749]
[1733646082399,0.0156531,99412.0,99411.0,0.80477749]
[1733646082619,0.01195575,99412.0,99411.0,0.80477749]
[1733646083505,7.5e-07,99412.0,99411.0,0.80477749]
[1733646083733,0.00017292,99421.0,99420.0,0.45405]
[1733646083948,0.00017292,99421.0,99420.0,0.87301215]
[1733646085523,0.00017292,99421.0,99420.0,0.85687258]
[1733646085932,0.00017292,99421.0,99420.0,0.85887258]
[1733646086343,0.00017292,99421.0,99420.0,0.85687258]
[1733646086553,9.2e-07,99421.0,99420.0,0.9300177]
[1733646086762,0.00169252,99430.0,99429.0,0.231033]
[1733646087007,5.2e-07,99430.0,99429.0,0.55406251]
[1733646087250,5.2e-07,99430.0,99429.0,0.89835558]
[1733646087952,5.2e-07,99430.0,99429.0,0.90035558]
[1733646088191,5.2e-07,99430.0,99429.0,0.9514598]
[1733646088683,0.0017312,99460.0,99459.0,0.203979]
[1733646088904,0.0017312,99460.0,99459.0,0.30400851]
[1733646088905,0.0037213,99460.0,99459.0,0.30400851]
[1733646089131,0.0017312,99460.0,99459.0,0.30400851]
[1733646089839,0.00190428,99460.0,99459.0,0.30400851]
[1733646090084,0.00190428,99460.0,99459.0,0.52060636]
[1733646090584,0.00190428,99460.0,99459.0,0.53113478]
[1733646091496,0.00190428,99460.0,99459.0,0.53213478]
[1733646092624,0.00190428,99460.0,99459.0,0.50913478]
[1733646092828,0.00190428,99460.0,99459.0,0.50701912]
[1733646094632,0.00190428,99460.0,99459.0,0.50601912]
[1733646095046,0.00190428,99460.0,99459.0,0.50701912]
[1733646095266,0.00190428,99460.0,99459.0,0.50601912]
[1733646095939,0.00190428,99460.0,99459.0,0.52901912]
[1733646096667,0.00190428,99460.0,99459.0,0.53001912]
[1733646103760,0.00190428,99460.0,99459.0,0.50701912]
[1733646104002,0.12870428,99460.0,99459.0,0.31762736]
[1733646104250,0.12870428,99460.0,99459.0,0.06759785]
[1733646104483,0.13071065,99460.0,99459.0,0.001]
[1733646106225,0.13271065,99460.0,99459.0,0.001]
[1733646106448,0.13271065,99460.0,99453.0,0.180989]
[1733646106659,0.00125683,99459.0,99453.0,0.180989]
[1733646106865,0.00200375,99458.0,99453.0,0.180989]
[1733646107107,0.00200375,99458.0,99454.0,0.05231244]
[1733646107964,0.0778,99457.0,99454.0,0.05231244]
[1733646108455,0.00200113,99456.0,99454.0,0.05231244]
[1733646108719,0.26004283,99455.0,99454.0,0.05231244]
[1733646108947,0.26004283,99455.0,99450.0,0.01114039]
[1733646108948,0.07979982,99455.0,99450.0,0.0008655]
[1733646109176,0.0778,99453.0,99450.0,0.0008655]
[1733646109407,0.0778,99451.0,99450.0,0.0008655]
[1733646109829,0.07979459,99451.0,99450.0,0.0008655]
[1733646110306,0.13005155,99451.0,99450.0,0.0008655]
[1733646110764,0.13005155,99451.0,99450.0,0.0028655]
[1733646111207,0.13005155,99451.0,99450.0,0.0008655]
[1733646111911,0.13005155,99451.0,99421.0,0.181048]
[1733646112152,0.181016,99439.0,99423.0,0.181044]
[1733646112362,0.0778,99437.0,99424.0,0.10002951]
[1733646112585,0.00125714,99436.0,99425.0,0.18104]
[1733646112817,0.00125714,99436.0,99426.0,0.10002951]
[1733646113032,0.00194845,99435.0,99427.0,0.20056379]
[1733646113270,0.0778,99437.0,99427.0,0.20056379]
[1733646113271,0.00125714,99434.0,99427.0,0.3005933]
[1733646113530,0.00125714,99436.0,99427.0,0.3005933]
[1733646113789,0.00194452,99435.0,99428.0,0.21626793]
[1733646114009,0.00125714,99434.0,99429.0,0.181033]
[1733646114237,0.0778,99437.0,99429.0,0.181033]
[1733646114693,0.07905715,99437.0,99429.0,0.181033]
[1733646114912,0.07905715,99437.0,99430.0,0.04973304]
[1733646115362,0.08005715,99437.0,99430.0,0.04973304]
[1733646115808,0.07905715,99437.0,99430.0,0.04973304]
[1733646116259,0.08005715,99437.0,99430.0,0.04973304]
[1733646116477,0.00125715,99436.0,99430.0,0.04973304]
[1733646116688,0.00125715,99436.0,99431.0,0.04808006]
[1733646116914,0.00194714,99435.0,99431.0,0.04808006]
[1733646117380,0.00125715,99434.0,99431.0,0.04808006]
[1733646117873,0.00194714,99433.0,99431.0,0.001]
[1733646118098,0.00125715,99436.0,99431.0,0.001]
[1733646118770,0.00125715,99436.0,99432.0,0.181028]
[1733646118991,0.00125715,99436.0,99431.0,0.001]
[1733646119221,0.00125715,99436.0,99432.0,0.06130985]
[1733646120830,0.00125715,99436.0,99432.0,0.06230985]
[1733646121307,0.00125715,99436.0,99432.0,0.06130985]
[1733646121535,0.00125715,99436.0,99432.0,0.06230985]
[1733646122903,0.00125715,99436.0,99432.0,0.06130985]
[1733646123123,0.00125715,99436.0,99433.0,0.06742739]
[1733646123358,0.00194416,99435.0,99433.0,0.06742739]
[1733646123820,0.00125715,99436.0,99433.0,0.06742739]
[1733646124295,0.00125715,99436.0,99433.0,0.06842739]
[1733646126508,0.00194416,99435.0,99433.0,0.06842739]
[1733646126721,0.00194416,99435.0,99434.0,0.05107792]
[1733646127841,0.00194416,99435.0,99434.0,0.05207792]
[1733646130267,0.00194416,99435.0,99434.0,0.33313143]
[1733646130733,0.0778,99437.0,99434.0,0.33313143]
[1733646130734,0.0778,99437.0,99434.0,0.51415543]
[1733646130959,0.0778,99437.0,99436.0,0.18102]
[1733646131175,0.0778,99437.0,99436.0,0.07064737]
[1733646133051,0.0778,99437.0,99436.0,0.17067688]
[1733646133257,0.0017312,99450.0,99444.0,0.181005]
[1733646133477,0.0017312,99450.0,99445.0,0.10002951]
[1733646133692,0.0017312,99450.0,99447.0,0.181]
[1733646133895,0.0017312,99450.0,99449.0,0.180997]
[1733646134098,0.0017312,99450.0,99449.0,0.28102651]
[1733646134300,0.0047312,99450.0,99449.0,0.28102651]
[1733646134727,0.0027312,99450.0,99449.0,0.28102651]
[1733646134951,0.0027312,99450.0,99449.0,0.34930517]
[1733646135382,0.0027312,99450.0,99449.0,0.35682631]
[1733646136033,0.0017312,99450.0,99449.0,0.35682631]
[1733646136251,0.0824312,99450.0,99449.0,0.0767998]
[1733646136489,0.0824312,99450.0,99449.0,0.00752114]
[1733646136490,0.08440491,99450.0,99449.0,0.00752114]
[1733646136960,0.08440491,99450.0,99449.0,0.01152114]
[1733646137206,0.08440491,99450.0,99449.0,0.00852114]
[1733646137425,0.08440491,99450.0,99449.0,0.03150139]
[1733646137866,0.08540491,99450.0,99449.0,0.03150139]
[1733646138973,0.0834312,99450.0,99449.0,0.03150139]
[1733646139162,0.0824312,99450.0,99449.0,0.03150139]
[1733646139383,0.0844063,99450.0,99449.0,0.03150139]
[1733646139604,0.0854063,99450.0,99449.0,0.03150139]
[1733646139829,0.0854063,99450.0,99449.0,0.00752114]
[1733646140047,0.0844063,99450.0,99449.0,0.00752114]
[1733646140277,0.0854063,99450.0,99449.0,0.00752114]
[1733646140774,0.0844063,99450.0,99449.0,0.00752114]
[1733646141219,0.0854063,99450.0,99449.0,0.00752114]
[1733646142307,0.0844063,99450.0,99449.0,0.00752114]
[1733646142519,0.0844063,99450.0,99449.0,0.02740899]
[1733646142751,0.0854063,99450.0,99449.0,0.02740899]
[1733646143163,0.0844063,99450.0,99449.0,0.02740899]
[1733646143383,0.0844063,99450.0,99449.0,0.01988785]
[1733646143623,0.0854063,99450.0,99449.0,0.02741179]
[1733646144112,0.0844063,99450.0,99449.0,0.02741179]
[1733646144350,0.0854063,99450.0,99449.0,0.02741179]
[1733646145008,0.0854063,99450.0,99449.0,0.00752394]
[1733646145925,0.0844063,99450.0,99449.0,0.00752394]
[1733646146406,0.0844063,99450.0,99444.0,0.01035335]
[1733646146661,0.00125697,99449.0,99445.0,0.00752342]
[1733646146896,0.00125697,99449.0,99446.0,0.04137716]
[1733646146897,0.00323076,99449.0,99446.0,0.04137716]
[1733646147109,0.00125697,99449.0,99447.0,0.00752342]
[1733646147327,0.00125697,99449.0,99446.0,0.03385374]
[1733646147328,0.00197248,99448.0,99446.0,0.03385374]
[1733646147549,0.00125697,99449.0,99447.0,0.00752357]
[1733646147762,0.00125697,99449.0,99448.0,0.00752357]
[1733646150380,0.00125697,99449.0,99448.0,0.00952357]
[1733646150856,0.08005697,99449.0,99448.0,0.00952357]
[1733646151322,0.12655697,99449.0,99448.0,0.00952357]
[1733646151535,0.12655697,99449.0,99448.0,0.00752357]
[1733646152270,0.0788,99449.0,99448.0,0.00752357]
[1733646152521,0.0788,99449.0,99448.0,0.04447703]
[1733646152987,0.0017312,99450.0,99449.0,0.180997]
[1733646153221,0.0017312,99450.0,99449.0,0.18852057]
[1733646155909,0.0027312,99450.0,99449.0,0.18852057]
[1733646156366,0.0017312,99450.0,99449.0,0.18852057]
[1733646156582,0.0017312,99450.0,99449.0,0.27087281]
[1733646156794,0.0017312,99450.0,99449.0,0.27187281]
[1733646157021,0.0017312,99450.0,99449.0,0.28391523]
[1733646160407,0.0017312,99450.0,99449.0,0.28491523]
[1733646160623,0.0017312,99450.0,99449.0,0.28291523]
[1733646161044,0.0017312,99450.0,99449.0,0.28691523]
[1733646161269,0.0017312,99450.0,99449.0,0.28291523]
[1733646161699,0.0017312,99450.0,99449.0,0.28791523]
[1733646161919,0.0017312,99450.0,99449.0,0.38394474]
[1733646162376,0.0017312,99450.0,99449.0,0.4740779]
[1733646162610,0.0017312,99450.0,99449.0,0.38394474]
[1733646163472,0.0017312,99450.0,99449.0,0.38794474]
[1733646163693,0.0017312,99450.0,99449.0,0.36837576]
[1733646163937,0.0017312,99450.0,99449.0,0.3879613]
[1733646170092,0.0017312,99450.0,99449.0,0.52336414]
[1733646171156,0.0017312,99450.0,99449.0,0.82414219]
[1733646171380,0.0017312,99450.0,99449.0,0.52336414]
[1733646171615,0.0017312,99450.0,99449.0,0.82394357]
[1733646172242,0.0017312,99450.0,99449.0,0.82399206]
[1733646173109,0.0017312,99450.0,99449.0,0.68854073]
[1733646175131,0.0017312,99450.0,99449.0,0.86907785]
[1733646176231,0.0017312,99450.0,99449.0,0.68854073]